Cogmind - Beta 14 *** ADVENTURER MODE // 2024.08.08 @ 17:49:01 Player: EgorIV Result: Destroyed by Y-45 Defender with Heavy Assault Rifle Performance ------------- Evolutions (2) 1000 Regions Visited (6) 1200 Robots Destroyed (49) 245 Value Destroyed (1319) 1319 Prototype IDs (1) 20 Alien Tech Used (0) 0 Bonus (114) 114 TOTAL SCORE: 3898 Bonus ------- High Alert Combat Kills 79 Follower Combat Kills 35 Cogmind --------- Core Integrity 0/550 Matter 300/300 Energy 100/100 System Corruption 1% Temperature Cool (9) Movement Walking (190) Ox1 Location -8/Storage Parts ------- > --- POWER (1) -------- (None) > --- PROPULSION (3) --- Improved Aluminum Leg > --- UTILITY (5) ------ Medium Storage Unit Improved Terrain Scan Processor Melee Analysis Suite ECM Suite System Shield > --- WEAPON (2) ------- Heavy Flail Axe > --- INVENTORY (10) --- Compact Wheel Humpback Structural Scanner Improved Terrain Scanner Advanced Targeting Computer Tractor Beam Rocket Launcher Rocket Launcher Peak State ------------ > --- POWER ------------ Light Nuclear Core > --- PROPULSION ------- Improved Aluminum Leg Improved Aluminum Leg Improved Aluminum Leg > --- UTILITY ---------- Medium Storage Unit Improved Terrain Scanner Improved Terrain Scan Processor Melee Analysis Suite System Shield > --- WEAPON ----------- Heavy Flail Axe > --- INVENTORY -------- Humpback Structural Scanner Advanced Targeting Computer ECM Suite Tractor Beam Rocket Launcher Rocket Launcher [Rating: 29] Favorites ----------- Power Light Ion Engine Engine Light Ion Engine Power Core Light Nuclear Core Propulsion Wheel Treads Light Treads Leg Improved Aluminum Leg Wheel Wheel Hover Unit Hover Unit Flight Unit Flight Unit Utility Small Storage Unit Device ECM Suite Storage Small Storage Unit Processor Melee Analysis Suite Hackware System Shield Protection Light Armor Plating Weapon Assault Rifle Energy Gun Heavy EM Shotgun Ballistic Gun Assault Rifle Ballistic Cannon Battle Cannon Launcher Grenade Launcher Special Weapon Mining Laser Impact Weapon Heavy Flail Slashing Weapon Axe Build | -11 -10 -10 -10 -9 -8 -8 ------- Run | Yrd Mat Min Exi Min Mat Sto Slots Evolved 4 | . . . . . 4 . Power . | . . . . . . . Propulsion 1 | . . . . . 1 . Utility 3 | . . . . . 3 . Weapon . | . . . . . . . Parts Attached 71 | 10 8 3 3 16 27 4 Power 9 | 1 1 . . 3 4 . Engine 8 | 1 1 . . 3 3 . Core 1 | . . . . . 1 . Reactor . | . . . . . . . Propulsion 19 | 3 3 1 1 5 5 1 Treads 1 | . . . . . 1 . Leg 4 | . . . . . 3 1 Wheel 10 | 3 2 . 1 3 1 . Hover 1 | . 1 . . . . . Flight 3 | . . 1 . 2 . . Utility 25 | 2 1 2 2 6 9 3 Device 16 | 1 . 2 . 4 7 2 Storage 4 | 1 . . 2 1 . . Processor 3 | . . . . 1 1 1 Hackware 1 | . . . . . 1 . Protection 1 | . 1 . . . . . Artifact . | . . . . . . . Weapon 18 | 4 3 . . 2 9 . Energy Gun 1 | . . . . . 1 . Energy Cannon . | . . . . . . . Ballistic Gun 8 | 3 2 . . 1 2 . Ballistic Cannon 1 | . . . . 1 . . Launcher 3 | . 1 . . . 2 . Special Weapon 1 | 1 . . . . . . Impact Weapon 2 | . . . . . 2 . Slashing Weapon 2 | . . . . . 2 . Piercing Weapon . | . . . . . . . Special Melee Weapon . | . . . . . . . Unidentified Prototypes 1 | . . . . . 1 . Parts Lost 17 | 1 . . . 5 7 4 Power 5 | . . . . 2 2 1 Propulsion 8 | . . . . 2 3 3 Utility 2 | . . . . . 2 . Weapon 2 | 1 . . . 1 . . Highest Loss Streak 4 | 1 . . . 3 2 4 To Critical Strikes . | . . . . . . . Average Slot Usage (%) 80 | . 83 57 54 70 92 96 Engine 7 | . 11 14 14 6 7 . Core 1 | . . . . . 1 9 Leg 4 | . . . . . 6 24 Wheel 14 | . 24 . 8 18 16 . Hover 1 | . 2 14 5 . . . Flight 1 | . . 7 5 2 . . Device 12 | . 1 . . 4 22 9 Storage 9 | . 12 . 6 14 9 9 Processor 3 | . . . . 1 3 16 Hackware 4 | . . . . . 7 9 Ballistic Gun 11 | . 17 20 14 13 9 . Ballistic Cannon 2 | . . . . 7 . . Impact Weapon 2 | . . . . . 3 9 Slashing Weapon 1 | . . . . . 2 9 Peak Build Rating 29 | 7 7 7 6 9 27 29 Average Rating 12 | 6 5 4 3 6 21 26 On Entrance 7 | . 6 4 4 4 9 24 Naked Turns . | . . . . . . . Heaviest Build 204 | 12 16 5 204 19 30 23 Greatest Support 39 | 26 26 6 10 20 39 39 Greatest Overweight (x) 20 | . . 1 20 3 5 1 Average Overweight (x) . | . . . . . . . Largest Inventory Capacity 35 | 8 8 5 35 10 10 10 Average Capacity 8 | 7 7 5 7 8 10 10 Most Carried 10 | 5 6 5 5 8 10 9 Average Carried 6 | 2 3 4 4 5 9 8 Final Capacity 10 | 8 5 5 8 10 10 10 Final Carried 9 | 3 5 5 5 8 9 9 Class Distribution -------------------- 58% | Mutant 20% | Hacker-Mutant 16% | Hacker-Gladiator 4% | Scavenger-Mutant Dominant Class ---------------- Mutant | -10/Materials Mutant | -10/Mines Mutant | -10/Exiles Mutant | -9/Mines Hacker-Mutant | -8/Materials Hacker-Gladiator | -8/Storage Resources | -11 -10 -10 -10 -9 -8 -8 ----------- Run | Yrd Mat Min Exi Min Mat Sto Matter Collected 1160 | 311 117 49 . 259 394 30 Remotely 220 | 220 . . . . . . Salvage Created 1542 | 96 90 17 . 112 1083 144 Parts 93 | 7 4 2 . 11 62 7 Haulers Intercepted 1 | . . . . . 1 . Recyclers Shooed 1 | . . . . . 1 . Parts Field Recycled . | . . . . . . . Retrieved Matter . | . . . . . . . Parts Self-Destructed . | . . . . . . . Prevented . | . . . . . . . Kills | -11 -10 -10 -10 -9 -8 -8 ------- Run | Yrd Mat Min Exi Min Mat Sto Combat Hostiles Destroyed 40 | . 2 1 . 9 26 2 Melee 18 | . . . . . 16 2 Guns 8 | . . 1 . 3 4 . Cannons 6 | . . . . 6 . . AOE 3 | . 2 . . . 1 . Classes Destroyed 10 | 2 1 1 . 1 5 . Tunneler 2 | 1 . . . . 1 . Hauler 1 | . . . . . 1 . Recycler 4 | 1 1 . . . 1 1 Watcher 3 | . . . . . 3 . Swarmer 18 | . . 1 . 8 9 . Grunt 14 | . 2 . . . 11 1 Duelist 2 | . . . . . 1 1 Sentry 3 | . . . . . 3 . Hunter 2 | . . . . . 2 . Assembled 1 | . . . . 1 . . Best Kill Streak 8 | 2 3 1 . 8 5 3 Combat Bots Only 8 | . 2 1 . 8 5 1 Max Kills in Single Turn 1 | 1 1 1 . 1 1 1 Gunslinging . | . . . . . . . Exploded 1 | . 1 . . . 1 . Melee 1 | . . . . . 1 1 Uniques/NPCs Destroyed . | . . . . . . . Combat | -11 -10 -10 -10 -9 -8 -8 -------- Run | Yrd Mat Min Exi Min Mat Sto Hostile Shots Fired 302 | 2 4 11 . 69 197 19 Missed 73 | . 1 6 . 10 53 3 Damage Taken 2117 | 48 55 33 . 483 1269 229 Core 691 | . 8 . . 125 535 23 Absorbed by Shields . | . . . . . . . Ignored by Resistances 636 | 14 16 11 . 146 386 63 Core Remaining (%) 73 | 100 . . . 46 . . Volleys Fired 76 | 32 6 2 . 18 18 . Largest 2 | 2 2 2 . 2 2 . Hottest 100 | 100 40 40 . 59 75 . Shots Fired 109 | 36 7 4 . 30 32 . Gun 60 | 8 2 4 . 18 28 . Cannon 12 | . . . . 12 . . Launcher 9 | . 5 . . . 4 . Special 28 | 28 . . . . . . Kinetic 66 | 8 2 4 . 30 22 . Thermal 28 | 28 . . . . . . Explosive 9 | . 5 . . . 4 . Electromagnetic 6 | . . . . . 6 . Robot Hit Streak 19 | 6 6 4 . 13 19 . Robot Miss Streak 5 | 1 1 . . 2 5 . Penetration Max . | . . . . . . . Secondary Targets 1 | . . . . . 1 . Max Gunslinging Chain 1 | . . . . . 1 . Shots Hit Robots 105 | 6 6 4 . 17 65 7 Core Hits 60 | 4 8 1 . 11 32 4 Critical Kills 3 | . . . . . 3 . Critical Parts Destroyed 4 | . . . . . 4 . Critical Strikes 10 | . . . . 1 8 1 Destroy 1 | . . . . . 1 . Blast 1 | . . . . 1 . . Smash 6 | . . . . . 6 . Sever 2 | . . . . . 1 1 Melee Attacks 61 | . . . . . 52 9 Impact 35 | . . . . . 35 . Slashing 26 | . . . . . 17 9 Piercing . | . . . . . . . Sneak Attacks 3 | . . . . . 2 1 Combat Hostiles . | . . . . . . . Follow-up Attacks 2 | . . . . . 2 . Damage Inflicted 3484 | 63 296 34 . 318 2496 277 Guns 657 | 63 10 34 . 91 459 . Cannons 195 | . . . . 195 . . Explosions 513 | . 286 . . . 227 . Melee 2078 | . . . . . 1801 277 Ramming 41 | . . . . 32 9 . Kinetic 710 | 63 10 34 . 286 317 . Thermal . | . . . . . . . Explosive 513 | . 286 . . . 227 . Electromagnetic 142 | . . . . . 142 . Impact 1282 | . . . . . 1282 . Slashing 796 | . . . . . 519 277 Piercing . | . . . . . . . Highest Corruption 3 | . . . . 3 1 1 Average Corruption 1 | . . . . 2 1 1 Corruption Purged . | . . . . . . . Corruption Blocked . | . . . . . . . Effects 22 | . . . . 20 2 . Message Errors 9 | . . . . 7 2 . Matter Fused 6 | . . . . 6 . . Heat Flow Errors 3 | . . . . 3 . . Energy Discharges 2 | . . . . 2 . . Data Loss (minor) 1 | . . . . 1 . . Alerts 1 | . . . . 1 . . Overload Shots . | . . . . . . . Overflow Damage 310 | . . . . . 310 . Projectiles 40 | . . . . . 40 . Explosions 8 | . . . . . 8 . Melee 262 | . . . . . 262 . Knockbacks 5 | . . . . . 5 . Impact 3 | . . . . . 3 . Kinetic . | . . . . . . . Secondary 2 | . . . . . 2 . Self-Inflicted Damage 44 | . 26 . . 14 4 . Shots 2 | . 2 . . . . . Rammed 11 | . . . . 10 1 . Targets Rammed 11 | . . . . 10 1 . Kicked . | . . . . . . . Crushed . | . . . . . . . Highest Temperature 266 | 140 29 2 . 266 36 5 Average Temperature 71 | 72 19 1 . 116 21 5 Received Heat Transfer 520 | . 24 . . 46 333 117 Siege Activations . | . . . . . . . Robots Corrupted 5 | . . . . . 5 . Combat Hostiles 5 | . . . . . 5 . Parts Fried 8 | . . . . . 8 . Impact Corruptions 10 | . . . . . 10 . Robots Melted . | . . . . . . . Combat Hostiles . | . . . . . . . Parts Melted . | . . . . . . . Heat Transferred . | . . . . . . . Parts Sabotaged . | . . . . . . . Parts Stolen . | . . . . . . . Parts Stripped . | . . . . . . . Power Chain Reactions . | . . . . . . . Alert | -11 -10 -10 -10 -9 -8 -8 ------- Run | Yrd Mat Min Exi Min Mat Sto Peak Influence 597 | 10 100 143 . 326 597 227 Initial 151 | . . 33 . . . 151 Average 99 | 2 52 107 . 72 166 173 Maximum Alert Level 2 | . . . . 1 2 1 Low Security (%) 84 | 100 100 100 . 92 64 91 Level 1 9 | . . . . 7 18 8 Level 2 6 | . . . . . 17 . Level 3 . | . . . . . . . Level 4 . | . . . . . . . Level 5 . | . . . . . . . High Security . | . . . . . . . Max Security . | . . . . . . . Squads Dispatched 9 | . 1 . . . 8 . Investigation 4 | . 1 . . . 3 . Extermination . | . . . . . . . Reinforcement 5 | . . . . . 5 . Assault . | . . . . . . . Garrison . | . . . . . . . Intercept . | . . . . . . . Searches Triggered . | . . . . . . . Construction Impeded 1 | . . . . . 1 . Haulers Reinforced . | . . . . . . . Active Scanning Responses . | . . . . . . . Cargo Convoy Interrupts . | . . . . . . . Stealth | -11 -10 -10 -10 -9 -8 -8 --------- Run | Yrd Mat Min Exi Min Mat Sto Distress Signals 6 | . 1 . . 1 4 . Communications Jammed . | . . . . . . . Distress Signals . | . . . . . . . Times Spotted 114 | 2 3 8 . 29 65 7 Peak Tracking Total 19 | 2 2 4 . 19 10 3 Tactical Retreats 25 | . . 2 . 6 14 3 Traps | -11 -10 -10 -10 -9 -8 -8 ------- Run | Yrd Mat Min Exi Min Mat Sto Traps Triggered 5 | . 2 . . . 3 . Indirectly . | . . . . . . . Trap Hack Attempts . | . . . . . . . Triggered . | . . . . . . . Disarmed . | . . . . . . . Reprogrammed . | . . . . . . . Reused . | . . . . . . . Traps Extracted . | . . . . . . . Installed . | . . . . . . . Triggered . | . . . . . . . Most Traps Carried 1 | . . 1 1 . . . Machines | -11 -10 -10 -10 -9 -8 -8 ---------- Run | Yrd Mat Min Exi Min Mat Sto Machines Disabled 4 | . 1 . . . 3 . Max in Single Turn 1 | . 1 . . . 1 . Machines Repaired . | . . . . . . . Machines Dismantled . | . . . . . . . Machines Sabotaged . | . . . . . . . Overloaded Fab Kills . | . . . . . . . Hacking | -11 -10 -10 -10 -9 -8 -8 --------- Run | Yrd Mat Min Exi Min Mat Sto Machines Accessed 9 | . . . 1 1 6 1 Terminals 6 | . . . . 1 4 1 Fabricators . | . . . . . . . Repair Stations 1 | . . . . . 1 . Recycling Units 1 | . . . . . 1 . Scanalyzers . | . . . . . . . Garrison Access . | . . . . . . . Total Hacks 47 | . . . 23 1 22 1 Successful 36 | . . . 23 1 11 1 Failed 11 | . . . . . 11 . Catastrophic . | . . . . . . . Database Lockouts . | . . . . . . . Manual 2 | . . . 2 . . . Terminals 21 | . . . . 1 19 1 Fabricators . | . . . . . . . Repair Stations 1 | . . . . . 1 . Recycling Units 2 | . . . . . 2 . Scanalyzers . | . . . . . . . Garrison Access . | . . . . . . . Terminal Hacks 33 | . . . 23 1 8 1 Record 25 | . . . 23 . 2 . Robot Analysis 1 | . . . . . 1 . Branch Access Points 1 | . . . . . . 1 Emergency Access Points 2 | . . . . . 2 . Dispatch Records 2 | . . . . . 2 . Maintenance Status 1 | . . . . . 1 . Zone Layout 1 | . . . . 1 . . Fabricator Hacks . | . . . . . . . Repair Station Hacks 1 | . . . . . 1 . Scan Component 1 | . . . . . 1 . Recycling Unit Hacks 2 | . . . . . 2 . Report Inventory 1 | . . . . . 1 . Retrieve Components 1 | . . . . . 1 . Scanalyzer . | . . . . . . . Garrison Access Hacks . | . . . . . . . Unauthorized Hacks . | . . . . . . . Terminals . | . . . . . . . Fabricators . | . . . . . . . Repair Stations . | . . . . . . . Recycling Units . | . . . . . . . Scanalyzers . | . . . . . . . Garrison Access . | . . . . . . . Data Cores Recovered . | . . . . . . . Used . | . . . . . . . Hacking Detections 2 | . . . . . 2 . Full Trace Events 2 | . . . . . 2 . Feedback Events . | . . . . . . . Feedback Blocked . | . . . . . . . Robot Schematics Acquired . | . . . . . . . Robots Built . | . . . . . . . Authchips . | . . . . . . . Time . | . . . . . . . Total Robot Build Rating . | . . . . . . . Part Schematics Acquired . | . . . . . . . Parts Built . | . . . . . . . Authchips . | . . . . . . . Time . | . . . . . . . Total Part Build Rating . | . . . . . . . Parts Repaired . | . . . . . . . Time . | . . . . . . . Parts Recycled . | . . . . . . . Recycled Matter . | . . . . . . . Retrieved Matter . | . . . . . . . Retrieved Components 3 | . . . . . 3 . Parts Scanalyzed . | . . . . . . . Part Schematics Acquired . | . . . . . . . Parts Damaged . | . . . . . . . Bothacking | -11 -10 -10 -10 -9 -8 -8 ------------ Run | Yrd Mat Min Exi Min Mat Sto Used RIF Installer . | . . . . . . . Robots Hacked . | . . . . . . . Non-combat . | . . . . . . . Combat . | . . . . . . . Robot Hacks Applied . | . . . . . . . Relay Couplers Released . | . . . . . . . Fabnet Peak Effective % . | . . . . . . . Robots Rewired . | . . . . . . . Allies Hacked . | . . . . . . . Hacks Repelled . | . . . . . . . Allies | -11 -10 -10 -10 -9 -8 -8 -------- Run | Yrd Mat Min Exi Min Mat Sto Total Allies 5 | . . 2 . 3 . . Largest Group 3 | . . 2 2 3 3 . Highest-Rated Group 45 | . . 45 45 40 40 . Highest-Rated Ally 31 | . . 31 31 16 16 . Total Orders . | . . . . . . . Ally Attacks 9 | . . . . . 9 . Total Damage 204 | . . . . . 204 . Kills 2 | . . . . . 2 . Allies Corrupted . | . . . . . . . Allies Melted . | . . . . . . . Intel | -11 -10 -10 -10 -9 -8 -8 ------- Run | Yrd Mat Min Exi Min Mat Sto Robot Analysis Total 1 | . . . . . 1 . Derelict Logs Recovered 1 | . . . . 1 . . Drone Launches . | . . . . . . . Drone Recoveries . | . . . . . . . Exploration | -11 -10 -10 -10 -9 -8 -8 ------------- Run | Yrd Mat Min Exi Min Mat Sto Turns Passed 6025 | 1289 149 248 465 1398 2125 351 Spaces Moved 2401 | 126 110 165 429 639 826 106 Core 19 | 11 . . . 7 1 . Treads 7 | . . . . . 7 . Legs 415 | . . . . . 309 106 Wheels 1581 | 115 85 . 341 531 509 . Hover 131 | . 25 106 . . . . Flight 248 | . . 59 88 101 . . Fastest Speed 40 | 50 60 40 40 80 80 120 Average Speed 88 | 78 78 53 75 88 101 127 Slowest Speed 380 | 90 90 120 380 200 300 190 Overloaded Moves . | . . . . . . . Propulsion Burnouts . | . . . . . . . Robots Hopped . | . . . . . . . Cave-ins Triggered . | . . . . . . . Exploration Rate (%) 46 | 14 22 46 77 96 49 19 Regions Visited 6 Branch Regions 4 Pre-discovered Areas 1 | . . . 1 . . . Known Exits Taken . | . . . . . . . Unknown Exits Taken 6 | 1 1 1 1 1 1 . Scrap Searched 2 | . . . . 2 . . Spaces Dug . | . . . . . . . Terrain Destroyed 51 | 2 23 . . 1 25 . Melee . | . . . . . . . Projectile 3 | 2 . . . 1 . . AOE 48 | . 23 . . . 25 . Terrain Rammed . | . . . . . . . Walls Destroyed . | . . . . . . . Machines Disabled . | . . . . . . . Actions | -11 -10 -10 -10 -9 -8 -8 --------- Run | Yrd Mat Min Exi Min Mat Sto Total 6020 | 1223 164 320 571 1445 1992 305 Wait 3323 | 1046 32 146 135 739 1042 183 Move 2395 | 125 109 164 428 638 825 106 Hop . | . . . . . . . Pick Up 55 | 10 6 1 1 17 18 2 Fast Attach 11 | . 1 3 2 . 5 . Attach 35 | 7 3 . 1 9 12 3 Detach 2 | . . . . . 1 1 Swap 25 | 3 4 . . 7 10 1 Drop 31 | . 3 4 4 7 13 . Fire 76 | 32 6 2 . 18 18 . Melee 56 | . . . . . 47 9 Ram 11 | . . . . 10 1 . Kick . | . . . . . . . Crush . | . . . . . . . Escape Stasis . | . . . . . . . Rewire . | . . . . . . . Trap . | . . . . . . . Miscellaneous . | . . . . . . . Route ------- -11/Scrapyard -10/Materials (discovered 2 exits: [*Min x2]) -10/Mines (discovered 2 exits: [*Mat] / *Exi) -10/Exiles -9/Mines (discovered 2 exits: *Mat x2) -8/Materials (discovered 2 exits: Fac / *Sto) -8/Storage (discovered 1 exit: Rec) History --------- Turn | Location | Event 3 | -11/Scrapyard | Discovered new exit (range 15) 1289 | -11/Scrapyard | Assembled infested the area 1290 | -11/Scrapyard | Entered Materials 1291 | -10/Materials | Build established: Mutant 1360 | -10/Materials | Discovered new exit (range 8) 1401 | -10/Materials | Met 8R-AWN 1403 | -10/Materials | Discovered new exit (range 16) 1439 | -10/Materials | Entered Mines 1440 | -10/Mines | Followed 8R-AWN into the Mines 1470 | -10/Mines | Found a hidden stash of uninstalled traps 1526 | -10/Mines | Discovered new exit (range 13) 1665 | -10/Mines | Discovered new exit (range 5) 1687 | -10/Mines | Entered Exiles 1687 | -10/Exiles | Accompanied by 2 allies 1717 | -10/Exiles | Led the pair of lost Derelicts to a safe place 1787 | -10/Exiles | Welcomed by 8R-AWN 1837 | -10/Exiles | Learned about 8R-AWN's background 1841 | -10/Exiles | Met EX-HEX 1890 | -10/Exiles | Met EX-DEC 1923 | -10/Exiles | Learned location of Zion (-6) 1966 | -10/Exiles | Discovered new exit (range 12) 2023 | -10/Exiles | Visited The Gauntlet 2152 | -10/Exiles | Entered Mines 2156 | -9/Mines | Assembled infested the area 2759 | -9/Mines | A weapon hastily lodged in a ceiling crevice suddenly fell to the ground 2805 | -9/Mines | Discovered new exit (range 4) 2850 | -9/Mines | Core integrity fell below 50% 2859 | -9/Mines | Lost 3 parts (1p1n1w) 2902 | -9/Mines | Destroyed 8 combat bots 3134 | -9/Mines | Received a Rocket Launcher from a helpful Derelict 3177 | -9/Mines | Learned 2 Materials zone layouts 3198 | -9/Mines | Assisted by bots powering up and referring to "LRC-V3" 3312 | -9/Mines | Discovered new exit (range 10) 3550 | -9/Mines | Entered Materials 3550 | -8/Materials | Accompanied by 3 allies 3550 | -8/Materials | Evolved 4 slots: Propulsion x1, Utility x3 3551 | -8/Materials | Identified exit to Factory 3582 | -8/Materials | Discovered new exit (range 14) 3619 | -8/Materials | Lost 3 allies 4105 | -8/Materials | Build established: Hacker-Mutant 4910 | -8/Materials | Core integrity fell below 50% 5331 | -8/Materials | Build established: Hacker-Gladiator 5403 | -8/Materials | Core integrity fell below 20% 5675 | -8/Materials | Entered Storage 5864 | -8/Storage | Identified exit to Recycling 6026 | -8/Storage | Destroyed by Y-45 Defender with Heavy Assault Rifle Last Messages --------------- Found 1 branch access point: (12,8) Recycling Map updated. Imp. Aluminum Leg destroyed. L-31 Rogue destroyed. Acquired 20 matter. Critical hit (Burn: +37). R-06 Scavenger collects Imp. Aluminum Leg. Sneak attack on R-06 Scavenger. R-06 Scavenger destroyed. Acquired Imp. Aluminum Leg. Acquired 10 matter. Imp. Aluminum Leg destroyed. G-47 Trooper Imp. Heat Sink severed. G-47 Trooper destroyed. R-06 Scavenger collects Sml. Storage Unit. Acquired Com. Wheel. R-06 Scavenger collects Tractor Beam. R-06 Scavenger collects Imp. Heat Sink. Lgt. Nuclear Core destroyed. Map ----- +----------------------------------------------------+ | ?????????????????????????????????????????????????? | | ?????????????????????????????????????????????????? | | ?????????????????????????????????????????????????? | | ?????????????????????????????????????????????????? | | ?????????????????????????????????????????????????? | | ?????????????????????????????????????????????????? | | ?????????????????????????????????????????????????? | | ?????????????????????????????????????????????????? | | ?????????????????????????????????????????????????? | | ?????????????????????????????????????????????????? | | ?????????????????????????????????????????????????? | | ?????????????????? ?????????????????????????????? | | ?????????????????? ?????????????????????????????? | | ?????????????????? ?????????????????????????????? | | ??????#??? ??????# #?#??????????????????????????? | | ?????#?? ??? ?# #############???????????????? | | ???????? ? ? ? + *! ????????? | | ???#??#???"?"""?# #####g#######???????????????? | | ???? ? ??"?? ??# ?#?##Y#?????????????????????? | | ???? #?"?? " ## ######%#?????????????????????? | | ??? ?? # """""" ## ######r####??????????????????? | | ? ? # ## # #??????????????????? | | #???? # / # ###????????????????? | | # #####+##### # """ """ ""#????????????????? | | ###+######## ##### # """ """ T"#????????????????? | | ?## #?### # """@""" ""#????????????????? | | ### ##### + ###????????????????? | | ### ##### # #??????????????????? | | ## """ # #??#???????????????? | | ## """ #######+############??????????????????? | | ## """ # ####????????????????????? | | ### """ + #####???????????????????? | | #?# """ ## " " #?##????????????????????? | | ### ## !!] "Y" #?##????????????????????? | | ??# ## !!! """ #?#????????????????????? | | ### """ ## !]! ??##????????????????????? | | ### """ ##################?#???????????????????? | | ### """ ## ? # ? ?????????????????????? | | ### """ ## ?"??? # ? """?????????????????????? | | #?# """ #? " ? # "" ??????????????????????? | | ?## ## """""? #?""" ??????????????????????? | | ### ## "?"?" ? "? ???????????????????????? | | ??# """ ## " ?" ? ? " ????????????????????????? | | ??# """ #? """?" ?? "?????????????????????????? | | ??# """ ##? ? # ??????????????????????????? | | ??# """ ######+##+######???????????????????????? | | ??# """ ??????????????????????? | | ??# ??????????????????????? | | ??# ??????????????????????? | | ??# #####+######??????????????????????????? | +----------------------------------------------------+ Best States ------------- Heat Dissipation 39 Energy Generation 14 Energy Capacity 275 Matter Stores 300 Matter Capacity 300 Sight Range 16 Robot Scan Range 15 Terrain Scan Range 16 Terrain Scan Density 110 ECM Strength 1 Armor Coverage 150 Resistance: KI 20 Resistance: TH 20 Resistance: EX 20 Resistance: EM 20 Resistance: I 20 Resistance: S 20 Resistance: P 20 Evasion (%) 62 Melee Accuracy 5 Recoil Reduction 1 Offensive Hacking 10 Defensive Hacking 10 Item Schematics ----------------- None Robot Schematics ------------------ None Fabricated ------------ Nothing Alien Tech Used ----------------- None Achievements -------------- Curiosity Killed The Cat I Survived The Infestation Party Time Slippery One Universal Adapter Challenges ------------ None Game ------ Seed BottomlessWarpAutogun Manual? 0 Play Time 01:08:59 Cumulative 20.4 hours Start 2024.08.08 @ 16:36:02 End 2024.08.08 @ 17:49:01 Sessions 1 Manual Loads 0 Difficulty Adventurer Special Mode None Game No. 4 Rogue 0 Adventurer 4 Explorer 0 Win Type - Total 0 Types 0/0/0/0/0/0/0/0/0 Lore% 7 Gallery% 19 Achievement% 21 Wizard Run 0 Options --------- Layout 1 ASCII 0 Keyboard 0 Movement Mouse Keybinds 0 Fullscreen 1 Font 32/SmallcapsGlow Map View 50x40 Zoom Use 0% Tactical HUD 0 Map Filters NONE Filters NONE Steam 0 RUN: 9567c2ec-2abb-4e04-83a1-a76257098e52